[Event "*** Titled Tuesday 3|2 Blitz"]
[Site "Chess.com"]
[Date "2016.01.05"]
[Round "5"]
[White "FairChess_on_YouTube"]
[Black "HansCoolNiemann"]
[Result "1-0"]
[WhiteElo "2734"]
[BlackElo "2230"]
[TimeControl "180+2"]
[EndTime "18:02:39 PST"]
[Termination "FairChess_on_YouTube won by checkmate"]

1. e4 {[%clk 0:03:01.9]} 1... e6 {[%clk 0:02:58.7]} 2. d4 {[%clk 0:03:02.3]}
2... d5 {[%clk 0:02:59]} 3. Nc3 {[%clk 0:03:03.9]} 3... Nf6 {[%clk 0:02:55.8]}
4. e5 {[%clk 0:03:04.5]} 4... Nfd7 {[%clk 0:02:50.2]} 5. f4 {[%clk 0:03:05.5]}
5... c5 {[%clk 0:02:50.5]} 6. Nf3 {[%clk 0:03:06.6]} 6... Nc6 {[%clk 0:02:52]}
7. Be3 {[%clk 0:03:01.1]} 7... cxd4 {[%clk 0:02:51.7]} 8. Nxd4 {[%clk 0:02:58]}
8... Bc5 {[%clk 0:02:52.9]} 9. Qd2 {[%clk 0:02:58.8]} 9... O-O {[%clk 0:02:52]}
10. O-O-O {[%clk 0:02:59.4]} 10... a6 {[%clk 0:02:52.2]} 11. Qf2 {[%clk
0:02:54.9]} 11... Bxd4 {[%clk 0:02:48.3]} 12. Bxd4 {[%clk 0:02:55.7]} 12... b5
{[%clk 0:02:50.2]} 13. Bd3 {[%clk 0:02:50.6]} 13... b4 {[%clk 0:02:41.6]} 14.
Ne2 {[%clk 0:02:45.8]} 14... a5 {[%clk 0:02:39.9]} 15. Bb5 {[%clk 0:02:39.2]}
15... Qc7 {[%clk 0:02:38.6]} 16. Bxc6 {[%clk 0:02:37.1]} 16... Qxc6 {[%clk
0:02:40.5]} 17. f5 {[%clk 0:02:36.6]} 17... Ba6 {[%clk 0:02:35.2]} 18. Ng3
{[%clk 0:02:28.5]} 18... Rac8 {[%clk 0:02:30.1]} 19. Rd2 {[%clk 0:02:21.7]}
19... a4 {[%clk 0:02:23.4]} 20. f6 {[%clk 0:02:19.7]} 20... g6 {[%clk
0:02:22.7]} 21. h4 {[%clk 0:01:57.5]} 21... b3 {[%clk 0:02:18.6]} 22. Kb1 {[%clk
0:01:47.9]} 22... bxc2+ {[%clk 0:02:18.7]} 23. Kc1 {[%clk 0:01:46.5]} 23... Bc4
{[%clk 0:02:19.1]} 24. Qe3 {[%clk 0:01:38]} 24... Kh8 {[%clk 0:02:16.1]} 25. Qg5
{[%clk 0:01:21.8]} 25... a3 {[%clk 0:02:10.9]} 26. h5 {[%clk 0:01:17.8]} 26...
axb2+ {[%clk 0:02:10.4]} 27. Bxb2 {[%clk 0:01:18.2]} 27... Rg8 {[%clk
0:02:10.7]} 28. Rd4 {[%clk 0:01:15.5]} 28... Nf8 {[%clk 0:02:08.7]} 29. Rdh4
{[%clk 0:01:06.4]} 29... Qb7 {[%clk 0:01:45.7]} 30. hxg6 {[%clk 0:00:50.7]}
30... fxg6 {[%clk 0:01:45.5]} 31. f7 {[%clk 0:00:44.4]} 31... Qxf7 {[%clk
0:01:45.4]} 32. Qf6+ {[%clk 0:00:45.2]} 32... Qg7 {[%clk 0:01:45.4]} 33. Rg4
{[%clk 0:00:38.2]} 33... Rc7 {[%clk 0:01:43.8]} 34. Nh5 {[%clk 0:00:34.2]} 34...
Qxf6 {[%clk 0:01:44.4]} 35. exf6 {[%clk 0:00:35.6]} 35... Rf7 {[%clk 0:01:42.4]}
36. Nf4 {[%clk 0:00:37.2]} 36... d4 {[%clk 0:01:39.3]} 37. Bxd4 {[%clk
0:00:33.2]} 37... e5 {[%clk 0:01:39.4]} 38. Bxe5 {[%clk 0:00:32.7]} 38... Nd7
{[%clk 0:01:40.9]} 39. Bd4 {[%clk 0:00:13.5]} 39... g5 {[%clk 0:01:41.6]} 40.
Nh3 {[%clk 0:00:10.5]} 40... Be6 {[%clk 0:01:34.4]} 41. Nxg5 {[%clk 0:00:11.1]}
41... Rg6 {[%clk 0:01:08.4]} 42. Nxf7+ {[%clk 0:00:08]} 42... Bxf7 {[%clk
0:01:08.9]} 43. Rxg6 {[%clk 0:00:09.2]} 43... Bxg6 {[%clk 0:01:10.8]} 44. f7+
{[%clk 0:00:10.4]} 44... Ne5 {[%clk 0:01:09.8]} 45. f8=Q# {[%clk 0:00:10.5]} 1-0

[Event "*** Titled Tuesday 3|2 Blitz"]
[Site "Chess.com"]
[Date "2016.01.05"]
[Round "5"]
[White "Quiet_Desperation"]
[Black "Carolina-moon"]
[Result "0-1"]
[WhiteElo "2110"]
[BlackElo "2009"]
[TimeControl "180+2"]
[EndTime "18:02:40 PST"]
[Termination "Carolina-moon won by resignation"]

1. e4 {[%clk 0:03:01.9]} 1... c5 {[%clk 0:03:00.3]} 2. Nf3 {[%clk 0:03:03.3]}
2... d6 {[%clk 0:03:01.5]} 3. d4 {[%clk 0:03:04.9]} 3... Nf6 {[%clk 0:03:02.9]}
4. Nc3 {[%clk 0:03:06]} 4... cxd4 {[%clk 0:03:04.1]} 5. Nxd4 {[%clk 0:03:07.9]}
5... a6 {[%clk 0:03:05.5]} 6. Be3 {[%clk 0:03:09.1]} 6... e5 {[%clk 0:03:06.3]}
7. Nb3 {[%clk 0:03:10]} 7... Be6 {[%clk 0:03:07.7]} 8. f3 {[%clk 0:03:11.7]}
8... Be7 {[%clk 0:03:07]} 9. Qd2 {[%clk 0:03:13.2]} 9... Nbd7 {[%clk 0:03:08]}
10. g4 {[%clk 0:03:14]} 10... O-O {[%clk 0:03:06.1]} 11. g5 {[%clk 0:03:14.1]}
11... Nh5 {[%clk 0:03:06.8]} 12. O-O-O {[%clk 0:03:14.8]} 12... b5 {[%clk
0:03:05.9]} 13. Nd5 {[%clk 0:03:15.3]} 13... Bxd5 {[%clk 0:03:02.7]} 14. exd5
{[%clk 0:03:16.7]} 14... Qc7 {[%clk 0:02:43]} 15. Kb1 {[%clk 0:03:16.6]} 15...
Rfc8 {[%clk 0:02:29.6]} 16. Bh3 {[%clk 0:03:13.2]} 16... a5 {[%clk 0:02:26.8]}
17. Bg4 {[%clk 0:03:11.4]} 17... Nf4 {[%clk 0:02:24.9]} 18. Bxf4 {[%clk
0:03:12.5]} 18... exf4 {[%clk 0:02:25.9]} 19. h4 {[%clk 0:03:06.1]} 19... a4
{[%clk 0:02:14.1]} 20. Nd4 {[%clk 0:03:07.4]} 20... a3 {[%clk 0:02:15]} 21. b3
{[%clk 0:03:07.7]} 21... Ne5 {[%clk 0:02:08.4]} 22. Bxc8 {[%clk 0:03:07.9]}
22... Qxc8 {[%clk 0:02:04.9]} 23. Nxb5 {[%clk 0:02:51.9]} 23... Nxf3 {[%clk
0:01:59]} 24. Qxf4 {[%clk 0:02:44.6]} 24... Ne5 {[%clk 0:01:59]} 25. c4 {[%clk
0:02:41.6]} 25... Qc5 {[%clk 0:01:49.7]} 26. Rhe1 {[%clk 0:02:35.1]} 26... Bf8
{[%clk 0:01:31.6]} 27. Qd4 {[%clk 0:02:32.3]} 27... Qc8 {[%clk 0:01:25.8]} 28.
Qe4 {[%clk 0:02:12.8]} 28... Rb8 {[%clk 0:01:16.7]} 29. Rc1 {[%clk 0:01:59.8]}
29... Qh3 {[%clk 0:01:13.3]} 30. Nxa3 {[%clk 0:01:45.8]} 30... Rxb3+ {[%clk
0:00:53.5]} 31. axb3 {[%clk 0:01:24.7]} 31... Qxb3+ {[%clk 0:00:53.3]} 32. Ka1
{[%clk 0:01:26]} 32... Qxa3+ {[%clk 0:00:54.5]} 33. Kb1 {[%clk 0:01:27.6]} 33...
Qb3+ {[%clk 0:00:50.1]} 34. Ka1 {[%clk 0:01:28.6]} 34... Nd3 {[%clk 0:00:44.6]}
35. Qd4 {[%clk 0:01:14.6]} 35... g6 {[%clk 0:00:26.5]} 36. Qc3 {[%clk
0:00:40.3]} 36... Qa4+ {[%clk 0:00:23.8]} 37. Kb1 {[%clk 0:00:41.3]} 37... Nxe1
{[%clk 0:00:15.8]} 38. Qxe1 {[%clk 0:00:37.7]} 38... Qb3+ {[%clk 0:00:14.8]} 39.
Ka1 {[%clk 0:00:37.9]} 39... Bg7+ {[%clk 0:00:15.5]} 40. Rc3 {[%clk 0:00:39.4]}
40... Bxc3+ {[%clk 0:00:16]} 41. Qxc3 {[%clk 0:00:41.3]} 0-1

[Event "*** Titled Tuesday 3|2 Blitz"]
[Site "Chess.com"]
[Date "2016.01.05"]
[Round "5"]
[White "mateueasily"]
[Black "jcgs1030"]
[Result "0-1"]
[WhiteElo "2321"]
[BlackElo "2214"]
[TimeControl "180+2"]
[EndTime "18:03:44 PST"]
[Termination "jcgs1030 won by resignation"]

1. e4 {[%clk 0:03:01.9]} 1... c5 {[%clk 0:03:01.9]} 2. c3 {[%clk 0:03:01.9]}
2... g6 {[%clk 0:02:57.4]} 3. d4 {[%clk 0:03:01.1]} 3... cxd4 {[%clk 0:02:59.3]}
4. cxd4 {[%clk 0:02:59.7]} 4... Nf6 {[%clk 0:03:00.3]} 5. e5 {[%clk 0:02:57.3]}
5... Nd5 {[%clk 0:03:00.8]} 6. Nf3 {[%clk 0:02:51.7]} 6... Bg7 {[%clk 0:03:01]}
7. Bc4 {[%clk 0:02:51.4]} 7... Nb6 {[%clk 0:03:01.7]} 8. Bb3 {[%clk 0:02:46.9]}
8... O-O {[%clk 0:03:02.4]} 9. O-O {[%clk 0:02:45.3]} 9... d6 {[%clk 0:03:03.3]}
10. Qe2 {[%clk 0:02:41.9]} 10... Bg4 {[%clk 0:03:00.6]} 11. e6 {[%clk
0:02:35.5]} 11... f5 {[%clk 0:02:57.7]} 12. h3 {[%clk 0:02:31.1]} 12... Bxf3
{[%clk 0:02:57.8]} 13. Qxf3 {[%clk 0:02:31.1]} 13... Nc6 {[%clk 0:02:59.4]} 14.
Be3 {[%clk 0:02:06.8]} 14... Bxd4 {[%clk 0:02:53.6]} 15. Bxd4 {[%clk 0:02:03.5]}
15... Nxd4 {[%clk 0:02:54.5]} 16. Qxb7 {[%clk 0:01:57.8]} 16... Nxb3 {[%clk
0:02:50.1]} 17. axb3 {[%clk 0:01:57.6]} 17... Rb8 {[%clk 0:02:43.8]} 18. Qf3
{[%clk 0:01:57.5]} 18... Qc8 {[%clk 0:02:42.8]} 19. Re1 {[%clk 0:01:30.8]} 19...
Qb7 {[%clk 0:02:40.9]} 20. Qe2 {[%clk 0:01:28.2]} 20... Nd5 {[%clk 0:02:40]} 21.
Nd2 {[%clk 0:01:17.9]} 21... Nf4 {[%clk 0:02:33.3]} 22. Qf3 {[%clk 0:01:19]}
22... Qxf3 {[%clk 0:02:33.9]} 23. Nxf3 {[%clk 0:01:19.6]} 23... Rb7 {[%clk
0:02:32.2]} 24. Nd4 {[%clk 0:00:47.1]} 24... Rc8 {[%clk 0:02:30.8]} 25. Rec1
{[%clk 0:00:37.9]} 25... Rc5 {[%clk 0:02:30.3]} 26. Rxc5 {[%clk 0:00:20]} 26...
dxc5 {[%clk 0:02:29.1]} 27. Nc6 {[%clk 0:00:21.1]} 27... Nxe6 {[%clk 0:02:28]}
28. Nxa7 {[%clk 0:00:19.8]} 28... Nd4 {[%clk 0:02:25.6]} 29. Nc8 {[%clk
0:00:20.1]} 29... Kf7 {[%clk 0:02:20.6]} 30. Ra5 {[%clk 0:00:19.5]} 30... Nxb3
{[%clk 0:02:18.4]} 31. Ra7 {[%clk 0:00:20.1]} 31... Rxa7 {[%clk 0:02:16.9]} 32.
Nxa7 {[%clk 0:00:20.3]} 32... Nd4 {[%clk 0:02:18.4]} 33. Kf1 {[%clk 0:00:20.8]}
33... Ke6 {[%clk 0:02:18.7]} 34. Ke1 {[%clk 0:00:21.7]} 34... Kd5 {[%clk
0:02:20.3]} 35. Kd2 {[%clk 0:00:23]} 35... Kc4 {[%clk 0:02:21.5]} 36. Nc8 {[%clk
0:00:24]} 36... e5 {[%clk 0:02:21.9]} 37. Nd6+ {[%clk 0:00:23.3]} 37... Kb3
{[%clk 0:02:22.7]} 38. Nb7 {[%clk 0:00:24.4]} 38... c4 {[%clk 0:02:20.9]} 39.
Na5+ {[%clk 0:00:25.4]} 39... Kb4 {[%clk 0:02:16.4]} 40. Nb7 {[%clk 0:00:20.5]}
40... Nb3+ {[%clk 0:02:10.8]} 41. Kc2 {[%clk 0:00:21]} 41... Nc5 {[%clk
0:01:59.9]} 42. Nd6 {[%clk 0:00:21.8]} 42... Nd3 {[%clk 0:01:50.6]} 43. Nf7
{[%clk 0:00:22.5]} 43... Kc5 {[%clk 0:01:41.8]} 44. f3 {[%clk 0:00:22.2]} 44...
Kd4 {[%clk 0:01:40]} 45. Kd2 {[%clk 0:00:21.6]} 45... Nxb2 {[%clk 0:01:40.2]}
46. Ng5 {[%clk 0:00:22.2]} 46... c3+ {[%clk 0:01:39.1]} 47. Kc2 {[%clk
0:00:23.1]} 47... Nc4 {[%clk 0:01:38.9]} 48. Nxh7 {[%clk 0:00:23.3]} 48... Ne3+
{[%clk 0:01:39.3]} 49. Kc1 {[%clk 0:00:24.7]} 49... Nxg2 {[%clk 0:01:40.7]} 50.
Nf8 {[%clk 0:00:25.7]} 50... Nf4 {[%clk 0:01:41.3]} 51. Nd7 {[%clk 0:00:25.9]}
51... Nxh3 {[%clk 0:01:42]} 52. Nf8 {[%clk 0:00:26.7]} 52... Nf4 {[%clk
0:01:43]} 53. Nd7 {[%clk 0:00:27.4]} 53... g5 {[%clk 0:01:43.5]} 54. Nf6 {[%clk
0:00:27.8]} 54... Nd3+ {[%clk 0:01:41.7]} 55. Kc2 {[%clk 0:00:28.7]} 55... Ne1+
{[%clk 0:01:42.6]} 56. Kd1 {[%clk 0:00:30.2]} 56... Nxf3 {[%clk 0:01:44.5]} 57.
Ke2 {[%clk 0:00:31.6]} 57... c2 {[%clk 0:01:45.2]} 0-1

[Event "*** Titled Tuesday 3|2 Blitz"]
[Site "Chess.com"]
[Date "2016.01.05"]
[Round "5"]
[White "Assasin14"]
[Black "pedromartinez91"]
[Result "1-0"]
[WhiteElo "1987"]
[BlackElo "2081"]
[TimeControl "180+2"]
[EndTime "18:04:11 PST"]
[Termination "Assasin14 won by resignation"]

1. e4 {[%clk 0:03:01.9]} 1... e6 {[%clk 0:02:57.9]} 2. d4 {[%clk 0:03:02.2]}
2... d5 {[%clk 0:02:58.6]} 3. Nc3 {[%clk 0:03:03.1]} 3... Nf6 {[%clk 0:02:59.1]}
4. Bg5 {[%clk 0:03:03.2]} 4... Be7 {[%clk 0:02:59.6]} 5. e5 {[%clk 0:03:03.9]}
5... Nfd7 {[%clk 0:03:00.4]} 6. h4 {[%clk 0:03:04.8]} 6... Nc6 {[%clk
0:03:00.9]} 7. Be3 {[%clk 0:03:01.4]} 7... f5 {[%clk 0:02:46.2]} 8. exf6 {[%clk
0:02:58.4]} 8... Nxf6 {[%clk 0:02:46.5]} 9. Bb5 {[%clk 0:02:57.2]} 9... O-O
{[%clk 0:02:45.9]} 10. Nf3 {[%clk 0:02:54.2]} 10... Bd7 {[%clk 0:02:44.8]} 11.
Bxc6 {[%clk 0:02:51.3]} 11... Bxc6 {[%clk 0:02:45.2]} 12. Ne5 {[%clk 0:02:51.4]}
12... Be8 {[%clk 0:02:45.6]} 13. Qd2 {[%clk 0:02:47.2]} 13... c5 {[%clk
0:02:41.9]} 14. dxc5 {[%clk 0:02:45.9]} 14... Qc7 {[%clk 0:02:35.1]} 15. Bd4
{[%clk 0:02:16.3]} 15... Bxc5 {[%clk 0:02:27]} 16. O-O-O {[%clk 0:02:16]} 16...
b5 {[%clk 0:02:25.1]} 17. Bxc5 {[%clk 0:02:04.3]} 17... Qxc5 {[%clk 0:02:25.4]}
18. Qd4 {[%clk 0:02:05.2]} 18... Qc7 {[%clk 0:02:14.7]} 19. g4 {[%clk
0:01:53.9]} 19... a5 {[%clk 0:02:10]} 20. g5 {[%clk 0:01:52.9]} 20... Nh5 {[%clk
0:02:06.8]} 21. Ne2 {[%clk 0:01:40.6]} 21... Rc8 {[%clk 0:02:05.8]} 22. Rd2
{[%clk 0:01:28.5]} 22... Bg6 {[%clk 0:01:55.3]} 23. Rh3 {[%clk 0:00:57.7]} 23...
b4 {[%clk 0:01:48.6]} 24. c3 {[%clk 0:00:53.8]} 24... Bf5 {[%clk 0:01:47.1]} 25.
Rf3 {[%clk 0:00:50.2]} 25... Be4 {[%clk 0:01:42.2]} 26. Rxf8+ {[%clk 0:00:40.5]}
26... Rxf8 {[%clk 0:01:42.7]} 27. Ng1 {[%clk 0:00:27.7]} 27... Nf4 {[%clk
0:01:25.5]} 28. f3 {[%clk 0:00:24.7]} 28... bxc3 {[%clk 0:01:21.4]} 29. Qxc3
{[%clk 0:00:20.3]} 29... Qxc3+ {[%clk 0:01:18.2]} 30. bxc3 {[%clk 0:00:22.2]}
30... Bf5 {[%clk 0:01:16.7]} 31. Ne2 {[%clk 0:00:22.8]} 31... Rb8 {[%clk
0:01:14.7]} 32. Kd1 {[%clk 0:00:12.7]} 32... Rb1+ {[%clk 0:00:56.1]} 33. Nc1
{[%clk 0:00:13.6]} 33... a4 {[%clk 0:00:51.8]} 34. Rd4 {[%clk 0:00:06.7]} 34...
Ng2 {[%clk 0:00:49.7]} 35. Rxa4 {[%clk 0:00:06.7]} 35... Ne3+ {[%clk 0:00:47.6]}
36. Kd2 {[%clk 0:00:07.6]} 36... Nc4+ {[%clk 0:00:42.3]} 37. Nxc4 {[%clk
0:00:08.3]} 37... dxc4 {[%clk 0:00:43.4]} 38. Rxc4 {[%clk 0:00:10.1]} 38... Kf7
{[%clk 0:00:37.7]} 39. Rc7+ {[%clk 0:00:10.3]} 39... Kg6 {[%clk 0:00:38.2]} 40.
f4 {[%clk 0:00:11.5]} 40... Kh5 {[%clk 0:00:38.8]} 41. Rxg7 {[%clk 0:00:11.8]}
41... Kxh4 {[%clk 0:00:39.6]} 42. a4 {[%clk 0:00:12.6]} 42... Kg3 {[%clk
0:00:35]} 43. Ne2+ {[%clk 0:00:13.3]} 43... Kf2 {[%clk 0:00:33.8]} 44. Nd4
{[%clk 0:00:13.4]} 44... Rb2+ {[%clk 0:00:33.4]} 45. Kc1 {[%clk 0:00:14.6]}
45... Ra2 {[%clk 0:00:34.5]} 46. Nxf5 {[%clk 0:00:15.4]} 46... exf5 {[%clk
0:00:35.5]} 47. Rxh7 {[%clk 0:00:16.8]} 47... Rxa4 {[%clk 0:00:33.8]} 48. Kd2
{[%clk 0:00:17.6]} 48... Rxf4 {[%clk 0:00:34.2]} 49. g6 {[%clk 0:00:19]} 49...
Rg4 {[%clk 0:00:35]} 50. Rf7 {[%clk 0:00:18.6]} 50... f4 {[%clk 0:00:33.5]} 51.
g7 {[%clk 0:00:19.6]} 51... Kg3 {[%clk 0:00:33.4]} 52. Ke2 {[%clk 0:00:19.1]}
52... Rg6 {[%clk 0:00:33.7]} 53. c4 {[%clk 0:00:20.1]} 53... Re6+ {[%clk
0:00:32.4]} 54. Kf1 {[%clk 0:00:21.1]} 54... Rg6 {[%clk 0:00:32.3]} 55. c5
{[%clk 0:00:22.4]} 55... f3 {[%clk 0:00:33.4]} 56. c6 {[%clk 0:00:23.6]} 56...
Rxc6 {[%clk 0:00:33.2]} 57. g8=Q+ {[%clk 0:00:24.1]} 1-0

[Event "*** Titled Tuesday 3|2 Blitz"]
[Site "Chess.com"]
[Date "2016.01.05"]
[Round "5"]
[White "DeviatkinAndrey"]
[Black "Recombinant"]
[Result "1-0"]
[WhiteElo "2474"]
[BlackElo "2195"]
[TimeControl "180+2"]
[EndTime "18:04:51 PST"]
[Termination "DeviatkinAndrey won by resignation"]

1. e4 {[%clk 0:02:59.6]} 1... c5 {[%clk 0:02:59.2]} 2. c3 {[%clk 0:03:00.4]}
2... g6 {[%clk 0:02:59.8]} 3. d4 {[%clk 0:03:01.3]} 3... cxd4 {[%clk 0:03:00.4]}
4. cxd4 {[%clk 0:03:02.7]} 4... d5 {[%clk 0:03:01]} 5. e5 {[%clk 0:03:03.9]}
5... Nc6 {[%clk 0:03:01.3]} 6. Be3 {[%clk 0:03:01.3]} 6... Bh6 {[%clk
0:02:56.4]} 7. Nc3 {[%clk 0:03:00.8]} 7... Bxe3 {[%clk 0:02:56.5]} 8. fxe3
{[%clk 0:03:01.7]} 8... Nh6 {[%clk 0:02:57]} 9. Bd3 {[%clk 0:02:58.9]} 9... O-O
{[%clk 0:02:51.6]} 10. Nf3 {[%clk 0:02:59.3]} 10... Bf5 {[%clk 0:02:50.6]} 11.
O-O {[%clk 0:02:59.8]} 11... Bxd3 {[%clk 0:02:49.7]} 12. Qxd3 {[%clk 0:03:00.6]}
12... e6 {[%clk 0:02:50.9]} 13. Rac1 {[%clk 0:02:56.3]} 13... Nf5 {[%clk
0:02:48.4]} 14. a3 {[%clk 0:02:52.3]} 14... f6 {[%clk 0:02:49.3]} 15. exf6
{[%clk 0:02:52.8]} 15... Qxf6 {[%clk 0:02:45]} 16. b4 {[%clk 0:02:53.8]} 16...
Rac8 {[%clk 0:02:32]} 17. b5 {[%clk 0:02:51.9]} 17... Nce7 {[%clk 0:02:32.5]}
18. Ne5 {[%clk 0:02:52.7]} 18... Qg5 {[%clk 0:02:29.7]} 19. Rce1 {[%clk
0:02:34.1]} 19... Nh4 {[%clk 0:02:16.9]} 20. g3 {[%clk 0:02:25]} 20... Rxf1+
{[%clk 0:02:14.9]} 21. Rxf1 {[%clk 0:02:25]} 21... Nhf5 {[%clk 0:02:16.1]} 22.
Rf3 {[%clk 0:02:19.9]} 22... Nd6 {[%clk 0:02:04.3]} 23. Rf4 {[%clk 0:02:06.3]}
23... Nef5 {[%clk 0:02:01.5]} 24. a4 {[%clk 0:02:02.7]} 24... h5 {[%clk
0:01:53.2]} 25. Nf3 {[%clk 0:01:44.5]} 25... Qe7 {[%clk 0:01:46.9]} 26. g4
{[%clk 0:01:45.8]} 26... hxg4 {[%clk 0:01:36.8]} 27. Rxg4 {[%clk 0:01:46.5]}
27... Qh7 {[%clk 0:00:56.9]} 28. Ne5 {[%clk 0:01:38.6]} 28... Qh3 {[%clk
0:00:42.9]} 29. Rxg6+ {[%clk 0:01:24.9]} 29... Kf8 {[%clk 0:00:43.5]} 30. Rg2
{[%clk 0:00:30.9]} 30... Qxe3+ {[%clk 0:00:36.5]} 31. Qxe3 {[%clk 0:00:31.7]}
31... Nxe3 {[%clk 0:00:38.4]} 32. Rf2+ {[%clk 0:00:32.1]} 32... Kg7 {[%clk
0:00:38]} 33. Ne2 {[%clk 0:00:31.9]} 33... Ne4 {[%clk 0:00:34.3]} 34. Rf7+
{[%clk 0:00:29.5]} 34... Kg8 {[%clk 0:00:35.3]} 35. Rf3 {[%clk 0:00:26.3]} 35...
Nf5 {[%clk 0:00:34.1]} 36. Rd3 {[%clk 0:00:19.2]} 36... Rc2 {[%clk 0:00:31.7]}
37. Nf4 {[%clk 0:00:20.5]} 37... Rc1+ {[%clk 0:00:20.4]} 38. Kg2 {[%clk
0:00:20.8]} 38... Nh4+ {[%clk 0:00:18.9]} 39. Kh3 {[%clk 0:00:19.9]} 39... Nf5
{[%clk 0:00:17.7]} 40. Kg2 {[%clk 0:00:14.9]} 40... Rc2+ {[%clk 0:00:12.5]} 41.
Kf1 {[%clk 0:00:15.1]} 41... Rxh2 {[%clk 0:00:11.1]} 42. Nxe6 {[%clk 0:00:16.4]}
42... Nfg3+ {[%clk 0:00:07.2]} 43. Kg1 {[%clk 0:00:17.1]} 43... Ra2 {[%clk
0:00:04.8]} 44. Nf4 {[%clk 0:00:16.1]} 44... Rxa4 {[%clk 0:00:05.5]} 45. Nxd5
{[%clk 0:00:16]} 45... Ra1+ {[%clk 0:00:06.4]} 46. Kg2 {[%clk 0:00:16.8]} 46...
Ra2+ {[%clk 0:00:07.7]} 47. Kf3 {[%clk 0:00:17]} 47... Rb2 {[%clk 0:00:07]} 48.
b6 {[%clk 0:00:16.6]} 48... axb6 {[%clk 0:00:07.8]} 49. Nf4 {[%clk 0:00:14.9]}
49... Rf2+ {[%clk 0:00:07.5]} 50. Kg4 {[%clk 0:00:16.2]} 50... Nf1 {[%clk
0:00:05.5]} 51. Ra3 {[%clk 0:00:15.9]} 51... Nf6+ {[%clk 0:00:06.2]} 52. Kg5
{[%clk 0:00:16]} 52... Ne4+ {[%clk 0:00:06.6]} 53. Kf5 {[%clk 0:00:17]} 53...
Nfg3+ {[%clk 0:00:07.5]} 54. Kg4 {[%clk 0:00:18.1]} 54... Nf1 {[%clk 0:00:07.3]}
55. Nd5 {[%clk 0:00:15.7]} 55... Rg2+ {[%clk 0:00:06.9]} 56. Kf4 {[%clk
0:00:15.9]} 56... Nf6 {[%clk 0:00:03.8]} 57. Nxf6+ {[%clk 0:00:16.4]} 57... Kg7
{[%clk 0:00:04.8]} 58. Ne4 {[%clk 0:00:17.1]} 58... Rg1 {[%clk 0:00:02.8]} 59.
Ra7 {[%clk 0:00:17.8]} 59... Kh6 {[%clk 0:00:02.6]} 60. Rxb7 {[%clk 0:00:19]}
60... b5 {[%clk 0:00:04.5]} 61. Rb6+ {[%clk 0:00:19.7]} 61... Kh5 {[%clk
0:00:04.5]} 62. Rxb5 {[%clk 0:00:20.5]} 62... Kh4 {[%clk 0:00:05.7]} 63. Nf3+
{[%clk 0:00:21]} 1-0

[Event "*** Titled Tuesday 3|2 Blitz"]
[Site "Chess.com"]
[Date "2016.01.05"]
[Round "5"]
[White "zanbato17"]
[Black "Iball95"]
[Result "0-1"]
[WhiteElo "2238"]
[BlackElo "2402"]
[TimeControl "180+2"]
[EndTime "18:05:27 PST"]
[Termination "Iball95 won by checkmate"]

1. d4 {[%clk 0:03:01.9]} 1... Nf6 {[%clk 0:02:59.1]} 2. c4 {[%clk 0:03:02.8]}
2... e6 {[%clk 0:02:59.4]} 3. Nf3 {[%clk 0:03:03.9]} 3... c5 {[%clk 0:03:00]} 4.
d5 {[%clk 0:03:04.4]} 4... b5 {[%clk 0:02:59]} 5. b3 {[%clk 0:02:40.9]} 5...
exd5 {[%clk 0:02:54.8]} 6. cxd5 {[%clk 0:02:41.1]} 6... Bb7 {[%clk 0:02:55.6]}
7. e4 {[%clk 0:02:37.9]} 7... Nxe4 {[%clk 0:02:55]} 8. Bxb5 {[%clk 0:02:37.9]}
8... Qa5+ {[%clk 0:02:53]} 9. Nbd2 {[%clk 0:02:05.9]} 9... Nxd2 {[%clk
0:02:41.8]} 10. Qe2+ {[%clk 0:02:06.3]} 10... Ne4+ {[%clk 0:02:16.4]} 11. Bd2
{[%clk 0:02:06.1]} 11... Qb6 {[%clk 0:02:02.7]} 12. Qxe4+ {[%clk 0:02:06.4]}
12... Be7 {[%clk 0:02:03.5]} 13. Bd3 {[%clk 0:01:54.2]} 13... Qg6 {[%clk
0:02:03.2]} 14. Qxg6 {[%clk 0:01:41]} 14... hxg6 {[%clk 0:02:05.1]} 15. Bc4
{[%clk 0:01:42.6]} 15... d6 {[%clk 0:01:59.3]} 16. O-O {[%clk 0:01:42.3]} 16...
Nd7 {[%clk 0:01:57.9]} 17. Rfe1 {[%clk 0:01:41.7]} 17... Kd8 {[%clk 0:01:56.4]}
18. Bg5 {[%clk 0:01:34.3]} 18... Bf6 {[%clk 0:01:51.2]} 19. Bf4 {[%clk
0:01:32.8]} 19... Bxa1 {[%clk 0:01:44.1]} 20. Rxa1 {[%clk 0:01:31.4]} 20... Kc7
{[%clk 0:01:43.2]} 21. Ng5 {[%clk 0:01:31]} 21... Rhf8 {[%clk 0:01:38]} 22. Re1
{[%clk 0:01:27.7]} 22... Rae8 {[%clk 0:01:32.8]} 23. Ne4 {[%clk 0:01:23]} 23...
Ne5 {[%clk 0:01:20.5]} 24. h3 {[%clk 0:01:03.8]} 24... f6 {[%clk 0:01:17.6]} 25.
Nc3 {[%clk 0:00:56.3]} 25... Nf3+ {[%clk 0:01:07.8]} 26. gxf3 {[%clk 0:00:56.5]}
26... Rxe1+ {[%clk 0:01:08]} 27. Kg2 {[%clk 0:00:58.2]} 27... a6 {[%clk
0:00:58.2]} 28. Ne4 {[%clk 0:00:58.4]} 28... Rxe4 {[%clk 0:00:50]} 29. fxe4
{[%clk 0:01:00.3]} 29... g5 {[%clk 0:00:47.4]} 30. Bg3 {[%clk 0:01:01.2]} 30...
Re8 {[%clk 0:00:47.6]} 31. Kf3 {[%clk 0:01:02]} 31... Bc8 {[%clk 0:00:46.1]} 32.
Bf1 {[%clk 0:00:57.6]} 32... a5 {[%clk 0:00:44.2]} 33. h4 {[%clk 0:00:52]} 33...
g4+ {[%clk 0:00:38.8]} 34. Kf4 {[%clk 0:00:52.8]} 34... Bd7 {[%clk 0:00:37.3]}
35. Bg2 {[%clk 0:00:51.7]} 35... a4 {[%clk 0:00:34.6]} 36. f3 {[%clk 0:00:49.6]}
36... axb3 {[%clk 0:00:33.8]} 37. axb3 {[%clk 0:00:50.4]} 37... gxf3 {[%clk
0:00:32.1]} 38. Bxf3 {[%clk 0:00:52.3]} 38... Rb8 {[%clk 0:00:34]} 39. Bd1
{[%clk 0:00:53.2]} 39... Rb4 {[%clk 0:00:33.8]} 40. Ke3 {[%clk 0:00:51.4]} 40...
Rb8 {[%clk 0:00:29.9]} 41. Bc2 {[%clk 0:00:50.3]} 41... Re8 {[%clk 0:00:30.2]}
42. Kf3 {[%clk 0:00:49.5]} 42... Bb5 {[%clk 0:00:30.1]} 43. Kg4 {[%clk
0:00:45.9]} 43... Rh8 {[%clk 0:00:27.1]} 44. Kf5 {[%clk 0:00:44.9]} 44... Be8
{[%clk 0:00:25.8]} 45. Ke6 {[%clk 0:00:43.2]} 45... Bd7+ {[%clk 0:00:26.4]} 46.
Kf7 {[%clk 0:00:43.7]} 46... g5 {[%clk 0:00:25.2]} 47. hxg5 {[%clk 0:00:31.1]}
47... fxg5 {[%clk 0:00:27.1]} 48. e5 {[%clk 0:00:32.6]} 48... Rh3 {[%clk
0:00:27.2]} 49. exd6+ {[%clk 0:00:32.5]} 49... Kc8 {[%clk 0:00:27.7]} 50. Bf2
{[%clk 0:00:29.6]} 50... Rf3+ {[%clk 0:00:26.8]} 51. Ke7 {[%clk 0:00:29.8]}
51... Rxf2 {[%clk 0:00:28.7]} 52. Bd3 {[%clk 0:00:31.4]} 52... Bh3 {[%clk
0:00:25.6]} 53. Ba6+ {[%clk 0:00:31.9]} 53... Kb8 {[%clk 0:00:26]} 54. d7 {[%clk
0:00:33.3]} 54... Bxd7 {[%clk 0:00:23.2]} 55. Kxd7 {[%clk 0:00:35.2]} 55... g4
{[%clk 0:00:23.1]} 56. d6 {[%clk 0:00:31.4]} 56... g3 {[%clk 0:00:23.7]} 57. Kc6
{[%clk 0:00:24.9]} 57... g2 {[%clk 0:00:22.9]} 58. d7 {[%clk 0:00:26.3]} 58...
Rd2 {[%clk 0:00:22.4]} 59. Bc4 {[%clk 0:00:13.5]} 59... g1=Q {[%clk 0:00:22.4]}
60. Be6 {[%clk 0:00:13.5]} 60... Qg2+ {[%clk 0:00:21.9]} 61. Kb5 {[%clk
0:00:14]} 61... Qb7+ {[%clk 0:00:21.6]} 62. Kc4 {[%clk 0:00:14.4]} 62... Qb4#
{[%clk 0:00:21.1]} 0-1